bitfinex-derivatives/quotes_SOLF0:USTF0_20250703
["timestamp","ask_amount","ask_price","bid_price","bid_amount"]
[1751567218252,5.66409028,151.19,151.18,19.75188809]
[1751567224158,0.04356748,151.2,151.18,13.13938809]
[1751567224356,8.17852713,151.24,151.22,8.23805591]
[1751567224555,14.78872713,151.24,151.23,8.23805591]
[1751567224759,17.11571604,151.24,151.23,8.23805591]
[1751567224952,8.93718891,151.24,151.21,6.611]
[1751567225151,6.6102,151.24,151.23,8.23805591]
[1751567225360,2.32686903,151.24,151.23,8.23805591]
[1751567225556,2.32686903,151.24,151.22,6.65474076]
[1751567225751,6.6096,151.25,151.23,8.23805591]
[1751567225958,2.33011021,151.24,151.23,8.23805591]
[1751567226260,2.33011021,151.24,151.22,11.54791213]
[1751567226456,6.6096,151.25,151.23,8.23805591]
[1751567226654,2.32935623,151.24,151.23,14.84835591]
[1751567226853,2.32935623,151.24,151.22,4.93741213]
[1751567227055,6.6096,151.25,151.23,8.23805591]
[1751567227256,2.32935623,151.24,151.23,8.23805591]
[1751567227455,2.32935623,151.24,151.22,4.93741213]
[1751567227656,6.6096,151.25,151.23,8.23805591]
[1751567227961,2.32869713,151.24,151.23,8.23805591]
[1751567228166,2.32869713,151.24,151.22,11.54791213]
[1751567228362,6.6096,151.25,151.23,14.84835591]
[1751567228562,2.32811404,151.24,151.23,14.84835591]
[1751567228761,2.32811404,151.24,151.23,6.6103]
[1751567229263,6.6096,151.25,151.23,6.6103]
[1751567229965,6.6096,151.25,151.22,11.54801213]
[1751567230159,6.6096,151.25,151.23,8.23805591]
[1751567230559,6.6096,151.25,151.22,11.54801213]
[1751567230760,6.6096,151.25,151.23,8.23805591]
[1751567231163,6.6096,151.25,151.22,11.54801213]
[1751567231461,6.6096,151.25,151.23,8.23805591]
[1751567231968,6.6096,151.25,151.22,11.54801213]
[1751567232156,6.6096,151.25,151.23,14.84825591]
[1751567232357,2.12989259,151.26,151.23,14.84825591]
[1751567232566,2.12989259,151.27,151.22,4.93741213]
[1751567232764,6.6095,151.25,151.23,8.23805591]
[1751567233164,6.6095,151.25,151.22,6.65474076]
[1751567233364,6.6095,151.25,151.23,8.23805591]
[1751567233865,6.6095,151.25,151.22,6.65474076]
[1751567234065,2.12989259,151.26,151.22,8.28229667]
[1751567234461,2.12989259,151.26,151.22,0.04424076]
[1751567234659,2.3629,151.28,151.22,0.04424076]
[1751567234660,6.6103,151.23,151.22,0.04424076]
[1751567234865,4.89317137,151.23,151.17,4.89317137]
[1751567235072,4.89317137,151.23,151.18,8.23805591]
[1751567235263,6.6119,151.2,151.18,8.23805591]
[1751567235463,6.6119,151.2,151.17,11.50567137]
[1751567235673,6.6119,151.2,151.18,8.23805591]
[1751567235966,6.65441865,151.2,151.18,8.23805591]
[1751567236171,0.04251865,151.2,151.19,13.13122728]
[1751567237667,0.04251865,151.2,151.19,19.74332728]
[1751567238173,6.6101,151.24,151.21,6.611]
[1751567238361,5.59867261,151.23,151.22,8.23805591]
[1751567239673,5.59867261,151.23,151.22,14.84885591]
[1751567252380,5.59867261,151.23,151.22,8.23805591]
[1751567254087,5.59867261,151.23,151.22,14.84885591]
[1751567254385,5.59867261,151.23,151.22,19.74202728]
[1751567262088,6.609,151.26,151.24,6.6098]
[1751567262288,6.609,151.26,151.25,8.23805591]
[1751567262790,6.609,151.26,151.24,4.93662089]
[1751567262985,6.609,151.26,151.25,8.23805591]
[1751567263191,8.20461418,151.31,151.25,4.8906751]
[1751567263386,16.40922836,151.36,151.25,4.8906751]
[1751567263387,8.20461418,151.36,151.3,13.12594139]
[1751567263586,2.12239283,151.35,151.32,4.88788548]
[1751567263890,2.12239283,151.34,151.32,4.88788548]
[1751567264090,6.6052,151.35,151.32,4.93112455]
[1751567264290,8.72759898,151.35,151.32,4.93112455]
[1751567264490,6.6056,151.34,151.32,4.93112455]
[1751567265996,6.6053,151.35,151.32,4.93112455]
[1751567266483,2.12239898,151.36,151.32,4.93112455]
[1751567266484,2.12239898,151.37,151.32,4.93112455]
[1751567266692,6.6057,151.34,151.32,4.93112455]
[1751567269097,6.606,151.33,151.32,4.93112455]
[1751567272303,6.6057,151.34,151.32,4.93112455]
[1751567272501,4.7385,151.38,151.32,4.93112455]
[1751567272797,6.6045,151.37,151.35,8.23805591]
[1751567273909,6.6046,151.36,151.35,8.23805591]
[1751567274110,12.18300896,151.36,151.35,8.23805591]
[1751567274413,6.6046,151.36,151.35,8.23805591]
[1751567277312,45.66,151.4,151.35,14.84315591]
[1751567277615,5.57431515,151.39,151.35,14.84315591]
[1751567277808,5.57431515,151.38,151.36,8.23805591]
[1751567278013,7.20124257,151.41,151.36,8.23805591]
[1751567278215,5.57462945,151.4,151.37,8.23805591]
[1751567278410,4.6955,151.42,151.37,8.23805591]
[1751567278611,5.57334074,151.41,151.37,8.23805591]
[1751567278911,5.57334074,151.4,151.38,8.28886982]
[1751567279112,7.00831959,151.42,151.38,8.28886982]
[1751567279311,5.57076145,151.41,151.38,0.05081391]
[1751567279917,6.6033,151.39,151.38,0.05081391]
[1751567281718,6.6031,151.4,151.38,0.05081391]
[1751567281914,6.6031,151.4,151.39,8.23805591]
[1751567282114,4.52347265,151.44,151.39,8.23805591]
[1751567282417,5.57395891,151.43,151.4,8.23805591]
[1751567282612,5.57395891,151.42,151.4,8.23805591]
[1751567282918,12.17685891,151.41,151.38,11.54239939]
[1751567283112,6.6029,151.41,151.4,8.23805591]
[1751567283311,4.52243901,151.44,151.4,8.23805591]
[1751567283512,5.57005237,151.43,151.41,8.23805591]
[1751567283814,6.6024,151.42,151.39,6.6033]
[1751567284016,6.6024,151.42,151.41,8.23805591]
[1751567284518,6.6027,151.41,151.39,11.49118548]
[1751567285014,6.6027,151.41,151.4,8.23805591]
[1751567286716,2.209,151.44,151.4,8.23805591]
[1751567286918,7.77315246,151.44,151.41,8.23805591]
[1751567287114,6.6018,151.43,151.42,8.23805591]
[1751567287416,2.2834,151.46,151.42,8.23805591]
[1751567287417,2.2834,151.46,151.43,8.23805591]
[1751567287714,5.56267072,151.46,151.44,13.12594139]
[1751567287920,5.56267072,151.46,151.44,4.88788548]
[1751567288313,6.6007,151.45,151.44,4.88788548]
[1751567288520,12.16337072,151.45,151.44,4.88788548]
[1751567289818,5.56267072,151.45,151.41,0.04212338]
[1751567290018,2.3933,151.47,151.44,8.23805591]
[1751567290218,5.57728527,151.46,151.44,8.23805591]
[1751567290419,6.6016,151.43,151.42,4.88788548]
[1751567290818,6.6016,151.43,151.42,13.12594139]
[1751567291422,6.6014,151.44,151.42,13.12594139]
[1751567291619,6.6014,151.44,151.42,4.88788548]
[1751567291821,6.6014,151.44,151.43,8.23805591]
[1751567292519,119.17862003,151.49,151.43,8.23805591]
[1751567292722,5.5705244,151.48,151.44,4.88788548]
[1751567292931,5.5705244,151.48,151.45,8.23805591]
[1751567293328,6.6005,151.46,151.44,4.93512353]
[1751567293725,6.6005,151.46,151.45,8.23805591]
[1751567295519,6.6007,151.45,151.44,4.93512353]
[1751567296029,6.6007,151.45,151.44,13.17317944]
[1751567296329,6.6005,151.46,151.44,13.17317944]
[1751567296529,6.6005,151.46,151.45,8.23805591]
[1751567296928,6.6005,151.46,151.44,4.93512353]
[1751567297128,6.6005,151.46,151.45,8.23805591]
[1751567297627,6.6005,151.46,151.44,4.93512353]
[1751567297830,6.6005,151.46,151.45,8.23805591]
[1751567298228,6.6005,151.46,151.44,4.93512353]
[1751567298427,6.6005,151.46,151.45,8.23805591]
[1751567299033,6.6005,151.46,151.44,4.93512353]
[1751567299231,6.6005,151.46,151.45,8.23805591]
[1751567301130,6.6001,151.47,151.45,8.23805591]
[1751567301429,6.6001,151.47,151.46,8.23805591]
[1751567303828,6.6007,151.45,151.44,0.04723805]
[1751567304328,12.21623573,151.45,151.44,0.04723805]
[1751567305031,6.602,151.42,151.41,45.6]
[1751567305331,4.88788548,151.46,151.41,45.6]
[1751567305527,5.61906265,151.45,151.41,45.6]
[1751567305731,6.6019,151.43,151.41,45.6]
[1751567305929,6.6019,151.43,151.41,50.48788548]
[1751567306131,6.6019,151.43,151.41,57.09028548]
[1751567306438,6.6019,151.43,151.41,50.48788548]
[1751567307031,6.6014,151.44,151.41,50.48788548]
[1751567307431,6.6014,151.44,151.41,57.09018548]
[1751567308233,5.63571452,151.43,151.41,57.09018548]
[1751567308434,6.6016,151.43,151.41,57.09018548]
[1751567310628,2.34915318,151.46,151.41,50.48788548]
[1751567310834,5.62465585,151.45,151.41,45.6]
[1751567311033,6.10114969,151.49,151.44,4.88788548]
[1751567311231,12.22451301,151.48,151.46,4.88788548]
[1751567311431,5.62491301,151.47,151.46,4.88788548]
[1751567311835,5.62491301,151.47,151.46,11.48818548]
[1751567314934,6.5992,151.49,151.47,6.5998]
[1751567315130,5.63086025,151.48,151.47,6.5998]
[1751567317239,5.63086025,151.48,151.46,4.88788548]
[1751567317436,6.599,151.49,151.46,4.88788548]
[1751567317636,5.65495522,151.48,151.46,4.88788548]
[1751567317836,6.599,151.49,151.46,4.88788548]
[1751567318135,5.65495522,151.48,151.46,4.88788548]
[1751567318440,6.599,151.49,151.46,4.88788548]
[1751567318642,5.65591413,151.48,151.47,6.5998]
[1751567319235,5.65591413,151.48,151.47,11.48768548]
[1751567319438,6.10114969,151.52,151.49,6.5988]
[1751567319640,8.01434515,151.51,151.49,4.88788548]
[1751567319841,6.10114969,151.54,151.49,4.88788548]
[1751567319842,2.35681746,151.53,151.5,6.5982]
[1751567320043,8.01505063,151.52,151.5,11.48608548]
[1751567320237,8.01505063,151.51,151.5,11.48608548]
[1751567320437,5.65823317,151.51,151.5,4.88788548]
[1751567322148,5.65823317,151.51,151.45,4.5858]
[1751567322149,5.65823317,151.51,151.43,45.58]
[1751567322347,19.03064931,151.5,151.43,45.58]
[1751567322543,6.6004,151.46,151.43,52.1813]
[1751567322734,6.6004,151.46,151.43,45.58]
[1751567323943,12.26400706,151.45,151.43,45.58]
[1751567324138,5.66320706,151.44,151.43,45.58]
[1751567325138,12.26440706,151.44,151.43,45.58]
[1751567325446,5.66320706,151.44,151.43,45.58]
[1751567326543,12.26440706,151.44,151.43,45.58]
[1751567327347,12.27053657,151.44,151.43,45.58]
[1751567328047,5.66933657,151.44,151.43,45.58]
[1751567328546,5.66669453,151.44,151.43,45.58]
[1751567329143,5.66669453,151.44,151.43,52.1816]
[1751567329551,5.66669453,151.44,151.43,45.58]
[1751567333145,12.26789453,151.44,151.43,45.58]
[1751567338354,12.26337954,151.44,151.43,45.58]
[1751567341552,5.66217954,151.44,151.43,52.1816]
[1751567342852,12.26337954,151.44,151.43,45.58]
[1751567343053,10.55006502,151.44,151.4,191.64]
[1751567343263,8.02290753,151.43,151.4,191.64]
[1751567343558,8.02201849,151.42,151.39,191.64]
[1751567343756,2.1716,151.45,151.39,4.88788548]
[1751567344057,14.17570754,151.44,151.41,4.88788548]
[1751567344252,5.6613531,151.43,151.41,4.88788548]
[1751567344468,5.6613531,151.42,151.41,11.49038548]
[1751567345658,6.1543534,151.46,151.45,6.6007]
[1751567345864,6.1543534,151.46,151.45,198.2607]
[1751567346568,12.87682081,151.5,151.45,191.66]
[1751567346862,7.22030872,151.49,151.45,191.66]
[1751567347062,2.35639652,151.48,151.46,4.88788548]
[1751567347261,12.87682081,151.5,151.46,4.88788548]
[1751567347468,8.95580362,151.49,151.47,6.5996]
[1751567347660,2.35650362,151.48,151.47,6.5996]
[1751567349363,2.35541969,151.48,151.47,6.5996]
[1751567351565,6.599,151.49,151.47,6.5996]
[1751567353864,2.3942,151.5,151.46,11.53029284]
[1751567354064,2.36587585,151.49,151.46,11.53029284]
[1751567354368,2.3942,151.5,151.46,11.53029284]
[1751567354566,8.96504779,151.49,151.46,11.53029284]
[1751567354767,6.5992,151.49,151.46,11.53029284]
[1751567355064,6.5992,151.49,151.47,6.5998]
[1751567355868,6.5992,151.49,151.46,11.53029284]
[1751567357670,5.62427575,151.48,151.46,11.53029284]
[1751567357870,5.62427575,151.47,151.46,11.53029284]
[1751567360970,5.62427575,151.47,151.46,4.93019284]
[1751567361171,12.22407575,151.47,151.46,0.04230736]
[1751567361368,14.58941157,151.47,151.46,0.04230736]
[1751567364173,14.58317362,151.47,151.46,0.04230736]
[1751567373772,7.98337362,151.47,151.46,6.64260736]
[1751567374280,7.98337362,151.47,151.46,0.04230736]
[1751567374971,7.98337362,151.47,151.46,6.64260736]
[1751567376374,7.98365127,151.47,151.46,6.64260736]
[1751567376877,7.98365127,151.47,151.46,0.04230736]
[1751567379279,7.98365127,151.47,151.46,6.64260736]
[1751567381076,14.58345127,151.47,151.46,0.04230736]
[1751567381978,7.98365127,151.47,151.46,0.04230736]
[1751567382178,7.98365127,151.47,151.46,4.93019284]
[1751567382581,7.98365127,151.47,151.46,11.53049284]
[1751567382779,4.78998605,151.49,151.46,4.93019284]
[1751567382974,4.78998206,151.51,151.48,4.88788548]
[1751567383178,6.5974,151.53,151.5,11.48608548]
[1751567383379,9.36601644,151.52,151.5,11.48608548]
[1751567383572,9.36601644,151.51,151.5,11.48608548]
[1751567383979,9.36601644,151.51,151.49,191.58]
[1751567384278,9.36601644,151.5,151.49,191.58]
[1751567384477,4.57646041,151.5,151.49,191.58]
[1751567385377,6.5984,151.51,151.49,191.58]
[1751567385781,6.5984,151.51,151.5,191.56]
[1751567386675,6.5984,151.51,151.48,11.48698548]
[1751567386878,6.5984,151.51,151.49,191.56]
[1751567387886,6.5984,151.51,151.49,198.159]
[1751567388081,6.5984,151.51,151.49,6.599]
[1751567388284,6.5984,151.51,151.49,198.139]
[1751567388881,6.5984,151.51,151.49,6.599]
[1751567389090,6.5984,151.51,151.49,198.139]
[1751567389477,6.5984,151.51,151.49,6.599]
[1751567389682,6.5984,151.51,151.49,198.139]
[1751567391190,6.5984,151.51,151.49,6.599]
[1751567391384,6.5984,151.51,151.49,198.139]
[1751567391689,6.5984,151.51,151.49,6.599]
[1751567391883,6.5984,151.51,151.49,191.54]
[1751567392379,6.5983,151.51,151.48,198.1391]
[1751567393490,6.5983,151.51,151.49,6.5989]
[1751567393689,6.5983,151.51,151.49,198.1189]
[1751567394190,6.5985,151.5,151.49,191.52]
[1751567394594,17.68400629,151.55,151.49,191.52]
[1751567394888,5.59753108,151.54,151.49,191.52]
[1751567395090,8.02396416,151.53,151.49,191.52]
[1751567395291,14.62196416,151.52,151.5,191.52]
[1751567395591,8.02396416,151.51,151.5,191.52]
[1751567395891,8.02396416,151.51,151.5,198.1185]
[1751567396692,8.02396416,151.51,151.5,6.5985]
[1751567397191,5.59753108,151.51,151.5,198.0985]
[1751567398096,45.56,151.56,151.51,6.5978]
[1751567398392,8.02193218,151.55,151.51,6.5978]
[1751567398595,6.5973,151.53,151.51,6.5978]
[1751567398794,8.02193218,151.52,151.51,6.5978]
[1751567400086,8.02193218,151.52,151.51,11.48568548]
[1751567400287,12.69452081,151.59,151.51,4.88788548]
[1751567400489,2.61131234,151.58,151.53,4.88788548]
[1751567400695,2.61131234,151.57,151.54,191.5]
[1751567400890,2.61131234,151.56,151.54,191.5]
[1751567401090,2.61131234,151.55,151.54,198.0968]
[1751567401296,2.61131234,151.55,151.5,191.5]
[1751567401491,2.61131234,151.54,151.5,191.5]
[1751567401694,2.61131234,151.53,151.5,191.5]
[1751567401887,2.61131234,151.52,151.5,191.5]
[1751567402094,6.5976,151.53,151.5,198.0983]
[1751567402388,4.88788548,151.55,151.5,198.0983]
[1751567402592,2.43523624,151.54,151.5,198.0983]
[1751567402896,2.43523624,151.53,151.5,6.5983]
[1751567403196,4.88788548,151.55,151.5,198.0783]
[1751567403397,2.43469198,151.54,151.5,198.0783]
[1751567403595,2.43469198,151.53,151.5,198.0783]
[1751567403897,4.88788548,151.55,151.5,191.48]
[1751567404097,2.43510064,151.54,151.5,191.48]
[1751567404293,2.43510064,151.53,151.5,191.48]
[1751567404503,2.43510064,151.52,151.5,198.0785]
[1751567404693,4.88788548,151.56,151.5,202.96638548]
[1751567404893,6.5975,151.53,151.5,196.36788548]
[1751567405292,6.5975,151.53,151.51,6.5981]
[1751567405593,6.5977,151.52,151.5,196.36788548]
[1751567405892,6.5977,151.52,151.5,202.96618548]
[1751567406598,6.5981,151.51,151.5,196.36788548]
[1751567406799,2.43559643,151.54,151.5,196.36788548]
[1751567406994,2.43559643,151.53,151.5,196.36788548]
[1751567407195,6.1493978,151.55,151.5,196.36788548]
[1751567407396,6.5976,151.53,151.5,202.96608548]
[1751567407598,6.1493978,151.55,151.5,196.36788548]
[1751567407798,2.43550688,151.54,151.5,196.36788548]
[1751567408000,2.43550688,151.53,151.5,196.36788548]
[1751567408202,2.43550688,151.52,151.5,191.48]
[1751567408398,6.5979,151.52,151.5,198.0785]
[1751567412004,6.5979,151.52,151.51,191.46]
[1751567412206,14.63882082,151.52,151.48,9.36878548]
[1751567412400,5.60324488,151.51,151.49,191.44]
[1751567412706,6.5979,151.52,151.5,191.44]
[1751567413004,5.60355822,151.51,151.48,9.36878548]
[1751567413205,6.5979,151.52,151.5,6.5983]
[1751567413405,6.5979,151.52,151.51,191.44]
[1751567413704,14.6374965,151.52,151.51,191.44]
[1751567418607,14.6374965,151.52,151.5,6.5983]
[1751567418807,5.60235142,151.51,151.5,6.5983]
[1751567419007,5.60235142,151.51,151.5,198.0383]
[1751567419811,5.60235142,151.51,151.5,201.15939977]
[1751567421111,5.60235142,151.51,151.5,198.0383]
[1751567421312,5.60235142,151.51,151.5,201.15939977]
[1751567423912,5.60235142,151.51,151.5,198.0383]
[1751567424108,5.60235142,151.51,151.5,201.15939977]
[1751567425514,8.04500628,151.51,151.5,201.15939977]
[1751567438326,8.04500628,151.51,151.5,191.44]
[1751567438528,11.16610605,151.51,151.46,48.62109977]
[1751567438830,6.5992,151.49,151.47,197.9596]
[1751567439027,8.23379723,151.48,151.47,201.08069977]
[1751567442525,2.63144581,151.48,151.47,201.08069977]
[1751567445629,2.6276044,151.48,151.47,194.48109977]
[1751567446127,2.6276044,151.48,151.47,246.56089977]
[1751567446329,8.25016512,151.48,151.47,9.72089977]
[1751567446630,8.25016512,151.48,151.47,246.56089977]
[1751567447230,8.25016512,151.48,151.47,9.72089977]
[1751567447430,8.25016512,151.48,151.47,246.56089977]
[1751567448325,8.25016512,151.48,151.47,9.72089977]
[1751567448527,8.25016512,151.48,151.47,246.56089977]
[1751567448832,8.25016512,151.48,151.47,9.72089977]
[1751567449033,8.25016512,151.48,151.47,246.56089977]
[1751567450031,8.25016512,151.48,151.47,6.5998]
[1751567450333,8.25016512,151.48,151.47,246.54089977]
[1751567450534,8.25016512,151.48,151.47,55.22089977]
[1751567450733,8.25016512,151.48,151.47,246.54089977]
[1751567451135,8.25016512,151.48,151.47,55.22089977]
[1751567451331,8.25016512,151.48,151.47,246.54089977]
[1751567451729,8.26213237,151.48,151.47,246.54089977]
[1751567451930,8.26213237,151.48,151.47,243.4198]
[1751567452128,8.26213237,151.48,151.47,246.54089977]
[1751567456341,8.26213237,151.48,151.47,55.22089977]
[1751567456532,8.26213237,151.48,151.47,246.54089977]
[1751567459043,8.26213237,151.48,151.47,243.4198]
[1751567459235,8.26213237,151.48,151.47,246.54089977]
[1751567460442,8.26213237,151.48,151.47,243.4198]
[1751567460642,8.26213237,151.48,151.47,246.54089977]
[1751567461044,8.26213237,151.48,151.47,243.4198]
[1751567461343,8.26213237,151.48,151.47,246.54089977]
[1751567463348,5.63452797,151.48,151.47,246.54089977]
[1751567463939,8.26441369,151.48,151.47,246.54089977]
[1751567464544,8.26441369,151.48,151.47,246.52089977]
[1751567464845,5.63452797,151.48,151.47,246.52089977]
[1751567465047,8.26284829,151.48,151.47,201.02089977]
[1751567467346,8.26284829,151.48,151.47,9.72089977]
[1751567467548,8.26284829,151.48,151.47,201.02089977]
[1751567470449,8.26284829,151.48,151.47,197.8998]
[1751567470650,8.26284829,151.48,151.47,201.02089977]
[1751567471045,8.26284829,151.48,151.47,6.5998]
[1751567471246,11.38756744,151.48,151.39,45.46]
[1751567471454,3.12488821,151.45,151.41,3.12488821]
[1751567471651,5.62082895,151.44,151.42,201.50658821]
[1751567471950,9.29325993,151.47,151.43,3.12488821]
[1751567472150,6.6007,151.45,151.44,191.8]
[1751567472353,11.41530135,151.45,151.39,45.46]
[1751567472651,6.6037,151.39,151.37,3.12488821]
[1751567472845,3.12488821,151.38,151.35,45.46]
[1751567473044,3.12488821,151.38,151.34,3.12488821]
[1751567473045,3.12488821,151.37,151.34,191.94]
[1751567473553,3.12488821,151.37,151.33,3.12488821]
[1751567473741,4.88822054,151.38,151.32,6.6063]
[1751567473940,5.60737982,151.37,151.33,197.04822054]
[1751567474146,5.60737982,151.36,151.33,192.16]
[1751567474449,6.16837172,151.4,151.35,4.88822054]
[1751567474650,5.59737135,151.39,151.36,192.14]
[1751567474952,5.59737135,151.38,151.36,192.14]
[1751567475146,5.59737135,151.37,151.36,192.14]
[1751567475754,6.6037,151.39,151.36,192.14]
[1751567477047,5.52578564,151.38,151.36,192.14]
[1751567477452,4.88822054,151.4,151.36,192.14]
[1751567477748,4.88822054,151.38,151.31,45.46]
[1751567477957,6.605,151.36,151.32,192.16]
[1751567478759,6.605,151.36,151.33,6.6059]
[1751567479054,6.6051,151.35,151.32,192.16]
[1751567479250,6.6051,151.35,151.31,45.46]
[1751567479461,6.6051,151.35,151.32,198.9061]
[1751567479754,6.6048,151.36,151.31,45.46]
[1751567479953,13.33679226,151.41,151.34,4.88822054]
[1751567480157,8.32534824,151.4,151.35,192.3]
[1751567480457,6.6039,151.38,151.35,198.905]
[1751567481054,6.6042,151.37,151.35,192.3]
[1751567481255,2.60738711,151.39,151.35,192.3]
[1751567481454,2.60738711,151.38,151.35,192.3]
[1751567481958,5.7088478,151.39,151.35,192.3]
[1751567482259,6.6038,151.38,151.35,192.3]
[1751567482958,6.6038,151.38,151.35,198.9049]
[1751567483260,2.58709608,151.39,151.35,192.3]
[1751567483556,8.29201448,151.39,151.35,192.3]
[1751567483860,6.6046,151.36,151.35,192.3]
[1751567484062,4.88822054,151.4,151.35,192.3]
[1751567484260,8.29769341,151.39,151.35,192.3]
[1751567484460,6.6046,151.37,151.35,192.3]
[1751567485555,6.604,151.38,151.35,198.905]
[1751567485751,2.59104183,151.39,151.35,192.3]
[1751567486262,2.59104183,151.4,151.35,192.3]
[1751567486560,8.3036353,151.41,151.35,192.3]
[1751567486760,6.6034,151.39,151.35,192.3]
[1751567486963,2.59104183,151.4,151.35,192.3]
[1751567487261,8.30330198,151.41,151.35,192.3]
[1751567487561,8.30330198,151.41,151.37,6.604]
[1751567489263,6.6033,151.39,151.37,6.604]
[1751567489560,4.88822054,151.4,151.35,192.3]
[1751567489762,6.6045,151.37,151.35,192.3]
[1751567491759,6.6045,151.37,151.34,6.6053]
[1751567492157,6.6049,151.36,151.33,192.16]
[1751567492358,6.6049,151.36,151.32,7.09112054]
[1751567492562,6.6049,151.36,151.32,199.25112054]
[1751567493063,6.6044,151.37,151.34,6.6053]
[1751567494359,2.361,151.42,151.36,4.88822054]
[1751567494557,5.71471825,151.41,151.36,4.88822054]
[1751567494763,6.6047,151.36,151.33,2.1728]
[1751567494956,6.6047,151.36,151.33,192.18]
[1751567495566,2.361,151.42,151.34,4.88822054]
[1751567495863,5.70099074,151.41,151.35,6.6047]
[1751567496063,6.604,151.38,151.35,6.6047]
[1751567497465,4.95157617,151.42,151.34,4.88822054]
[1751567497466,6.6035,151.39,151.36,6.6046]
[1751567498163,6.6041,151.38,151.35,6.6048]
[1751567498366,6.6041,151.38,151.34,4.88822054]
[1751567500168,6.6035,151.39,151.36,6.6044]
[1751567500368,4.88822054,151.41,151.36,6.6044]
[1751567500562,5.706266,151.4,151.36,6.6044]
[1751567500762,6.6037,151.39,151.36,6.6044]
[1751567501366,13.24559226,151.44,151.36,4.88822054]
[1751567501558,8.30975243,151.43,151.36,45.76]
[1751567501764,4.88822054,151.4,151.36,45.76]
[1751567502462,6.6041,151.38,151.36,45.76]
[1751567503970,6.6041,151.38,151.36,52.3646]
[1751567504569,6.6041,151.38,151.36,45.76]
[1751567504770,6.6042,151.37,151.36,45.76]
[1751567504966,4.88822054,151.4,151.34,192.24]
[1751567505166,5.7268045,151.39,151.34,192.24]
[1751567505472,6.6046,151.36,151.34,198.8453]
[1751567506066,6.6046,151.36,151.34,6.6053]
[1751567506670,6.6051,151.35,151.33,6.6057]
[1751567506970,4.88822054,151.38,151.33,198.7857]
[1751567507368,6.6049,151.36,151.33,198.7857]
[1751567508172,6.6049,151.36,151.33,198.7257]
[1751567509071,6.6051,151.35,151.33,198.7257]
[1751567510971,6.6051,151.35,151.33,198.6857]
[1751567511171,6.6051,151.35,151.33,6.6057]
[1751567511374,6.6051,151.35,151.33,192.02]
[1751567511961,6.6051,151.35,151.33,6.6059]
[1751567512170,6.6051,151.35,151.33,198.6259]
[1751567512762,6.6051,151.35,151.33,198.5859]
[1751567517371,5.65051419,151.34,151.33,198.5859]
[1751567518670,5.65051419,151.34,151.33,203.47412054]
[1751567522177,6.6044,151.37,151.34,6.6054]
[1751567522375,8.0789371,151.36,151.34,6.6054]
[1751567522574,5.65053649,151.35,151.34,6.6054]
[1751567524277,5.65053649,151.35,151.34,198.3254]
[1751567531787,5.65053649,151.35,151.34,191.72]
[1751567532195,12.25563649,151.35,151.34,191.72]
[1751567532495,14.68388347,151.35,151.34,191.72]
[1751567533898,14.68388347,151.35,151.34,191.62]
[1751567534592,6.6059,151.33,151.32,45.76]
[1751567534793,5.65053649,151.33,151.32,237.34]
[1751567535191,5.65053649,151.33,151.32,45.76]
[1751567535396,5.65053649,151.33,151.32,237.32]
[1751567535597,5.65053649,151.33,151.32,243.9264]
[1751567535799,5.65053649,151.33,151.32,237.32]
[1751567536195,8.07780547,151.33,151.32,237.32]
[1751567536500,14.68370547,151.33,151.32,237.32]
[1751567536694,8.07780547,151.33,151.32,237.32]
[1751567536892,5.65053649,151.33,151.32,237.32]
[1751567537097,5.65053649,151.33,151.32,243.9264]
[1751567538202,5.65053649,151.33,151.32,52.3664]
[1751567538405,12.25643649,151.33,151.32,45.76]
[1751567538707,8.07703853,151.33,151.31,191.58]
[1751567538904,8.07665184,151.32,151.31,196.46801972]
[1751567539405,5.65053649,151.32,151.31,196.46801972]
[1751567540301,5.65053649,151.32,151.31,203.07481972]
[1751567540599,6.6053,151.35,151.31,196.46801972]
[1751567540798,8.02592821,151.34,151.31,196.46801972]
[1751567541000,5.60134441,151.33,151.31,196.46801972]
[1751567541304,6.6051,151.35,151.32,45.54]
[1751567541503,8.02549655,151.34,151.32,45.54]
[1751567541705,5.60103107,151.33,151.32,52.1464]
[1751567543907,5.60103107,151.33,151.32,45.54]
[1751567544209,8.02820533,151.33,151.32,45.54]